[Event "Titled Tuesday Blitz July 05 Late 2022"]
[White "Skytte, Rasmus"]
[Black "Dilanyan, Grigor"]
[WhiteFideId "1404210"]
[BlackFideId "13303570"]
[WhiteElo "2430"]
[BlackElo "2279"]
[Result "0-1"]
[Round "07"]
[TimeControl "180+1"]
[Date "2022.07.05"]
[WhiteClock "0:00:13"]
[BlackClock "0:00:12"]

1. e4 {[%clk 0:02:32]}  e5 {[%clk 0:02:53]} 2. d4 {[%clk 0:02:29]}  exd4 {[%clk 0:02:51]} 3. c3 {[%clk 0:02:29]}  d3 {[%clk 0:02:51]} 4. Bxd3 {[%clk 0:02:29]}  Nc6 {[%clk 0:02:49]} 5. Nf3 {[%clk 0:02:27]}  d6 {[%clk 0:02:38]} 6. O-O {[%clk 0:02:25]}  Nf6 {[%clk 0:02:31]} 7. h3 {[%clk 0:02:22]}  g6 {[%clk 0:02:25]} 8. Re1 {[%clk 0:02:19]}  Bg7 {[%clk 0:02:13]} 9. Bg5 {[%clk 0:01:59]}  O-O {[%clk 0:01:57]} 10. Nbd2 {[%clk 0:01:53]}  h6 {[%clk 0:01:46]} 11. Bh4 {[%clk 0:01:51]}  g5 {[%clk 0:01:45]} 12. Bg3 {[%clk 0:01:52]}  Re8 {[%clk 0:01:45]} 13. Qb3 {[%clk 0:01:49]}  Nh5 {[%clk 0:01:24]} 14. Bh2 {[%clk 0:01:49]}  Nf4 {[%clk 0:01:23]} 15. Bxf4 {[%clk 0:01:48]}  gxf4 {[%clk 0:01:24]} 16. Rad1 {[%clk 0:01:47]}  Rb8 {[%clk 0:01:09]} 17. Bb5 {[%clk 0:01:40]}  Bd7 {[%clk 0:01:07]} 18. Nc4 {[%clk 0:01:08]}  a6 {[%clk 0:00:59]} 19. Bxc6 {[%clk 0:01:08]}  Bxc6 {[%clk 0:01:00]} 20. Qc2 {[%clk 0:01:00]}  b5 {[%clk 0:00:50]} 21. Ncd2 {[%clk 0:00:55]}  Qf6 {[%clk 0:00:44]} 22. Nd4 {[%clk 0:00:53]}  Bb7 {[%clk 0:00:43]} 23. N2f3 {[%clk 0:00:49]}  Qg6 {[%clk 0:00:35]} 24. Nf5 {[%clk 0:00:48]}  Bf6 {[%clk 0:00:34]} 25. Qd3 {[%clk 0:00:35]}  Kh8 {[%clk 0:00:34]} 26. N3h4 {[%clk 0:00:29]}  Qh5 {[%clk 0:00:31]} 27. Qf3 {[%clk 0:00:29]}  Qxf3 {[%clk 0:00:29]} 28. gxf3 {[%clk 0:00:28]}  Rg8+ {[%clk 0:00:24]} 29. Kh2 {[%clk 0:00:28]}  Rbe8 {[%clk 0:00:23]} 30. Ng2 {[%clk 0:00:26]}  Rg5 {[%clk 0:00:18]} 31. Nxh6 {[%clk 0:00:26]}  Re7 {[%clk 0:00:15]} 32. Ng4 {[%clk 0:00:25]}  Bg7 {[%clk 0:00:14]} 33. Nxf4 {[%clk 0:00:24]}  f5 {[%clk 0:00:14]} 34. exf5 {[%clk 0:00:22]}  Rxe1 {[%clk 0:00:14]} 35. Rxe1 {[%clk 0:00:22]}  Rxf5 {[%clk 0:00:14]} 36. Ng6+ {[%clk 0:00:21]}  Kh7 {[%clk 0:00:14]} 37. Ne7 {[%clk 0:00:20]}  Rxf3 {[%clk 0:00:14]} 38. Re2 {[%clk 0:00:20]}  Rd3 {[%clk 0:00:13]} 39. Nf5 {[%clk 0:00:19]}  Bf8 {[%clk 0:00:12]} 40. Nfe3 {[%clk 0:00:18]}  Bf3 {[%clk 0:00:11]} 41. Rc2 {[%clk 0:00:17]}  d5 {[%clk 0:00:11]} 42. Ne5 {[%clk 0:00:17]}  Bd6 {[%clk 0:00:10]} 43. Kg3 {[%clk 0:00:15]}  Be4 {[%clk 0:00:11]} 44. Kf4 {[%clk 0:00:15]}  Rxe3 {[%clk 0:00:09]} 45. Kxe3 {[%clk 0:00:15]}  Bxc2 {[%clk 0:00:09]} 46. Ng4 {[%clk 0:00:15]}  Bb1 {[%clk 0:00:09]} 47. Nf6+ {[%clk 0:00:16]}  Kg6 {[%clk 0:00:10]} 48. Nxd5 {[%clk 0:00:16]}  Bxa2 {[%clk 0:00:10]} 49. f4 {[%clk 0:00:16]}  Bxd5 {[%clk 0:00:10]} 50. Kd4 {[%clk 0:00:15]}  Be6 {[%clk 0:00:10]} 51. h4 {[%clk 0:00:15]}  c5+ {[%clk 0:00:11]} 52. Ke4 {[%clk 0:00:14]}  Kf6 {[%clk 0:00:11]} 53. h5 {[%clk 0:00:14]}  Bf8 {[%clk 0:00:12]} 54. f5 {[%clk 0:00:13]}  Bf7 {[%clk 0:00:12]} 0-1


[Site "https://www.chess.com"]

[Event "Titled Tuesday Blitz July 05 Late 2022"]
[White "So, Wesley"]
[Black "Paravyan, David"]
[WhiteFideId "5202213"]
[BlackFideId "4194985"]
[WhiteElo "2763"]
[BlackElo "2569"]
[Result "1-0"]
[Round "07"]
[TimeControl "180+1"]
[Date "2022.07.05"]
[WhiteClock "0:00:05"]
[BlackClock "0:00:02"]

1. e4 {[%clk 0:03:00]}  e5 {[%clk 0:03:00]} 2. Nf3 {[%clk 0:03:00]}  Nf6 {[%clk 0:03:00]} 3. Nxe5 {[%clk 0:02:58]}  d6 {[%clk 0:03:01]} 4. Nf3 {[%clk 0:02:59]}  Nxe4 {[%clk 0:03:01]} 5. Nc3 {[%clk 0:02:58]}  Nxc3 {[%clk 0:03:01]} 6. dxc3 {[%clk 0:02:59]}  Be7 {[%clk 0:03:02]} 7. Be3 {[%clk 0:03:00]}  O-O {[%clk 0:03:03]} 8. Qd2 {[%clk 0:03:00]}  Bg4 {[%clk 0:03:03]} 9. O-O-O {[%clk 0:02:49]}  Nd7 {[%clk 0:03:03]} 10. Kb1 {[%clk 0:02:48]}  c6 {[%clk 0:03:03]} 11. h3 {[%clk 0:02:44]}  Bxf3 {[%clk 0:03:02]} 12. gxf3 {[%clk 0:02:44]}  Re8 {[%clk 0:03:03]} 13. Rg1 {[%clk 0:02:43]}  Ne5 {[%clk 0:02:43]} 14. Be2 {[%clk 0:02:35]}  b5 {[%clk 0:02:40]} 15. f4 {[%clk 0:02:33]}  Nc4 {[%clk 0:02:36]} 16. Bxc4 {[%clk 0:02:31]}  bxc4 {[%clk 0:02:36]} 17. Qd4 {[%clk 0:02:30]}  Bf8 {[%clk 0:02:21]} 18. Qxc4 {[%clk 0:02:26]}  Qd7 {[%clk 0:02:20]} 19. f5 {[%clk 0:02:19]}  Qxf5 {[%clk 0:02:09]} 20. Qxc6 {[%clk 0:02:17]}  Qxh3 {[%clk 0:02:08]} 21. Qd5 {[%clk 0:02:03]}  g6 {[%clk 0:02:06]} 22. Bd4 {[%clk 0:01:51]}  Qe6 {[%clk 0:02:03]} 23. Qf3 {[%clk 0:01:40]}  Bg7 {[%clk 0:01:50]} 24. b3 {[%clk 0:01:40]}  a5 {[%clk 0:01:47]} 25. a4 {[%clk 0:01:37]}  Rab8 {[%clk 0:01:46]} 26. Kb2 {[%clk 0:01:36]}  Be5 {[%clk 0:01:44]} 27. Rge1 {[%clk 0:01:32]}  f6 {[%clk 0:01:41]} 28. Qd3 {[%clk 0:01:26]}  Re7 {[%clk 0:01:38]} 29. f4 {[%clk 0:01:24]}  Reb7 {[%clk 0:01:30]} 30. c4 {[%clk 0:01:16]}  Bxd4+ {[%clk 0:01:18]} 31. Qxd4 {[%clk 0:01:17]}  Qf7 {[%clk 0:01:17]} 32. Qc3 {[%clk 0:01:09]}  Qc7 {[%clk 0:00:51]} 33. Rd5 {[%clk 0:01:01]}  Rb4 {[%clk 0:00:45]} 34. Ka2 {[%clk 0:00:59]}  Qc6 {[%clk 0:00:43]} 35. Rxa5 {[%clk 0:00:54]}  d5 {[%clk 0:00:43]} 36. Rxd5 {[%clk 0:00:30]}  Rxa4+ {[%clk 0:00:39]} 37. Kb2 {[%clk 0:00:29]}  Rxc4 {[%clk 0:00:27]} 38. Rd8+ {[%clk 0:00:28]}  Rxd8 {[%clk 0:00:24]} 39. Qxc4+ {[%clk 0:00:28]}  Qxc4 {[%clk 0:00:24]} 40. bxc4 {[%clk 0:00:29]}  Kf7 {[%clk 0:00:16]} 41. Kc3 {[%clk 0:00:25]}  Re8 {[%clk 0:00:15]} 42. Rh1 {[%clk 0:00:24]}  h5 {[%clk 0:00:15]} 43. c5 {[%clk 0:00:21]}  Ke6 {[%clk 0:00:15]} 44. Kc4 {[%clk 0:00:20]}  Kd7 {[%clk 0:00:15]} 45. Rg1 {[%clk 0:00:19]}  Re4+ {[%clk 0:00:14]} 46. Kb5 {[%clk 0:00:19]}  Re2 {[%clk 0:00:07]} 47. c6+ {[%clk 0:00:08]}  Kc7 {[%clk 0:00:06]} 48. Rxg6 {[%clk 0:00:08]}  Rxc2 {[%clk 0:00:06]} 49. Rxf6 {[%clk 0:00:08]}  Rb2+ {[%clk 0:00:05]} 50. Kc5 {[%clk 0:00:09]}  Rc2+ {[%clk 0:00:05]} 51. Kd5 {[%clk 0:00:09]}  Rd2+ {[%clk 0:00:06]} 52. Ke5 {[%clk 0:00:08]}  Rc2 {[%clk 0:00:04]} 53. Kd5 {[%clk 0:00:08]}  Rd2+ {[%clk 0:00:04]} 54. Ke5 {[%clk 0:00:08]}  Rc2 {[%clk 0:00:05]} 55. f5 {[%clk 0:00:08]}  Rxc6 {[%clk 0:00:02]} 56. Rxc6+ {[%clk 0:00:03]}  Kxc6 {[%clk 0:00:03]} 57. Ke6 {[%clk 0:00:03]}  Kc7 {[%clk 0:00:02]} 58. f6 {[%clk 0:00:03]}  h4 {[%clk 0:00:02]} 59. f7 {[%clk 0:00:04]}  h3 {[%clk 0:00:02]} 60. f8=Q {[%clk 0:00:05]} 1-0


[Site "https://www.chess.com"]

[Event "Titled Tuesday Blitz July 05 Late 2022"]
[White "Tari, Aryan"]
[Black "Eljanov, Pavel"]
[WhiteFideId "1510045"]
[BlackFideId "14102951"]
[WhiteElo "2612"]
[BlackElo "2601"]
[Result "1-0"]
[Round "07"]
[TimeControl "180+1"]
[Date "2022.07.05"]
[WhiteClock "0:01:04"]
[BlackClock "0:00:01"]

1. e4 {[%clk 0:03:00]}  c6 {[%clk 0:02:56]} 2. d4 {[%clk 0:02:50]}  d5 {[%clk 0:02:56]} 3. e5 {[%clk 0:02:42]}  Bf5 {[%clk 0:02:56]} 4. f4 {[%clk 0:02:38]}  e6 {[%clk 0:02:54]} 5. Nf3 {[%clk 0:02:38]}  Nd7 {[%clk 0:02:49]} 6. Be3 {[%clk 0:02:34]}  Ne7 {[%clk 0:02:43]} 7. Be2 {[%clk 0:02:34]}  Qb6 {[%clk 0:02:27]} 8. Qc1 {[%clk 0:02:33]}  Bg4 {[%clk 0:02:26]} 9. Nbd2 {[%clk 0:02:31]}  Nf5 {[%clk 0:02:23]} 10. Bf2 {[%clk 0:02:31]}  c5 {[%clk 0:02:24]} 11. c4 {[%clk 0:01:59]}  cxd4 {[%clk 0:02:17]} 12. cxd5 {[%clk 0:01:59]}  exd5 {[%clk 0:02:15]} 13. O-O {[%clk 0:01:56]}  Be7 {[%clk 0:01:34]} 14. Nxd4 {[%clk 0:01:43]}  Bxe2 {[%clk 0:00:49]} 15. Nxf5 {[%clk 0:01:43]}  Bc5 {[%clk 0:00:48]} 16. Nb3 {[%clk 0:01:39]}  Bxf2+ {[%clk 0:00:39]} 17. Rxf2 {[%clk 0:01:40]}  O-O {[%clk 0:00:32]} 18. Ne7+ {[%clk 0:01:40]}  Kh8 {[%clk 0:00:31]} 19. Nxd5 {[%clk 0:01:41]}  Qc6 {[%clk 0:00:12]} 20. Qxc6 {[%clk 0:01:35]}  bxc6 {[%clk 0:00:12]} 21. Rxe2 {[%clk 0:01:33]}  cxd5 {[%clk 0:00:13]} 22. Rc1 {[%clk 0:01:24]}  Nb6 {[%clk 0:00:10]} 23. Nd4 {[%clk 0:01:24]}  Nc4 {[%clk 0:00:03]} 24. b3 {[%clk 0:01:23]}  Na3 {[%clk 0:00:04]} 25. Rc5 {[%clk 0:01:19]}  Rfd8 {[%clk 0:00:03]} 26. Ra5 {[%clk 0:01:17]}  Nb1 {[%clk 0:00:03]} 27. Rc2 {[%clk 0:01:16]}  Rac8 {[%clk 0:00:02]} 28. Rxd5 {[%clk 0:01:15]}  g5 {[%clk 0:00:01]} 29. fxg5 {[%clk 0:01:04]} 1-0


[Site "https://www.chess.com"]

[Event "Titled Tuesday Blitz July 05 Late 2022"]
[White "Veiga, Jose Francisco R P Neves"]
[Black "Gong, Patrick"]
[WhiteFideId "1930087"]
[BlackFideId "3222500"]
[WhiteElo "2288"]
[BlackElo "2103"]
[Result "1-0"]
[Round "07"]
[TimeControl "180+1"]
[Date "2022.07.05"]
[WhiteClock "0:00:14"]
[BlackClock "0:00:03"]

1. Nf3 {[%clk 0:03:00]}  g6 {[%clk 0:02:56]} 2. d4 {[%clk 0:02:59]}  Bg7 {[%clk 0:02:55]} 3. e4 {[%clk 0:02:59]}  d6 {[%clk 0:02:54]} 4. h3 {[%clk 0:02:58]}  Nf6 {[%clk 0:02:53]} 5. Nc3 {[%clk 0:02:57]}  O-O {[%clk 0:02:53]} 6. Be3 {[%clk 0:02:57]}  a6 {[%clk 0:02:53]} 7. a4 {[%clk 0:02:57]}  Nc6 {[%clk 0:02:53]} 8. Be2 {[%clk 0:02:44]}  e5 {[%clk 0:02:52]} 9. dxe5 {[%clk 0:02:43]}  dxe5 {[%clk 0:02:48]} 10. O-O {[%clk 0:02:32]}  h6 {[%clk 0:02:27]} 11. Bc4 {[%clk 0:02:29]}  Be6 {[%clk 0:02:13]} 12. Bxe6 {[%clk 0:02:15]}  fxe6 {[%clk 0:02:13]} 13. Qe2 {[%clk 0:02:15]}  Qe7 {[%clk 0:02:09]} 14. Qc4 {[%clk 0:02:15]}  Rfe8 {[%clk 0:02:04]} 15. Rfd1 {[%clk 0:02:12]}  Rad8 {[%clk 0:02:00]} 16. Bc5 {[%clk 0:02:06]}  Qf7 {[%clk 0:01:57]} 17. b4 {[%clk 0:02:00]}  Nd7 {[%clk 0:01:52]} 18. Be3 {[%clk 0:01:56]}  Nb6 {[%clk 0:01:50]} 19. Qb3 {[%clk 0:01:54]}  Nd4 {[%clk 0:01:48]} 20. Bxd4 {[%clk 0:01:50]}  exd4 {[%clk 0:01:45]} 21. a5 {[%clk 0:01:27]}  dxc3 {[%clk 0:01:36]} 22. axb6 {[%clk 0:01:26]}  cxb6 {[%clk 0:01:37]} 23. e5 {[%clk 0:01:21]}  Rc8 {[%clk 0:00:56]} 24. Rd6 {[%clk 0:01:14]}  Bf8 {[%clk 0:00:55]} 25. Rxb6 {[%clk 0:01:10]}  Qd7 {[%clk 0:00:48]} 26. Re1 {[%clk 0:00:19]}  Rc6 {[%clk 0:00:44]} 27. Rxc6 {[%clk 0:00:19]}  Qxc6 {[%clk 0:00:45]} 28. Re3 {[%clk 0:00:18]}  Rc8 {[%clk 0:00:41]} 29. Nd4 {[%clk 0:00:17]}  Qd5 {[%clk 0:00:37]} 30. Rxc3 {[%clk 0:00:13]}  Qxb3 {[%clk 0:00:35]} 31. Rxb3 {[%clk 0:00:13]}  Be7 {[%clk 0:00:12]} 32. Nxe6 {[%clk 0:00:12]}  Rxc2 {[%clk 0:00:12]} 33. g3 {[%clk 0:00:12]}  Rc4 {[%clk 0:00:11]} 34. Nc5 {[%clk 0:00:11]}  Bxc5 {[%clk 0:00:08]} 35. bxc5 {[%clk 0:00:12]}  Rxc5 {[%clk 0:00:09]} 36. Rxb7 {[%clk 0:00:12]}  Rxe5 {[%clk 0:00:09]} 37. Rb6 {[%clk 0:00:12]}  Kg7 {[%clk 0:00:08]} 38. Rxa6 {[%clk 0:00:13]}  h5 {[%clk 0:00:09]} 39. Kg2 {[%clk 0:00:13]}  Rb5 {[%clk 0:00:09]} 40. h4 {[%clk 0:00:14]}  Rb4 {[%clk 0:00:10]} 41. Ra7+ {[%clk 0:00:14]}  Kh6 {[%clk 0:00:10]} 42. Ra5 {[%clk 0:00:15]}  Rb3 {[%clk 0:00:10]} 43. Ra4 {[%clk 0:00:15]}  Rc3 {[%clk 0:00:10]} 44. Re4 {[%clk 0:00:16]}  Rb3 {[%clk 0:00:11]} 45. Re3 {[%clk 0:00:16]}  Rb4 {[%clk 0:00:11]} 46. Kf3 {[%clk 0:00:17]}  Ra4 {[%clk 0:00:12]} 47. Re4 {[%clk 0:00:17]}  Ra2 {[%clk 0:00:12]} 48. Ke3 {[%clk 0:00:17]}  Rb2 {[%clk 0:00:13]} 49. f3 {[%clk 0:00:18]}  Rb3+ {[%clk 0:00:13]} 50. Kf4 {[%clk 0:00:18]}  Rc3 {[%clk 0:00:13]} 51. g4 {[%clk 0:00:18]}  hxg4 {[%clk 0:00:13]} 52. fxg4 {[%clk 0:00:19]}  Rh3 {[%clk 0:00:13]} 53. Re8 {[%clk 0:00:19]}  Kg7 {[%clk 0:00:12]} 54. Kg5 {[%clk 0:00:19]}  Kf7 {[%clk 0:00:12]} 55. Ra8 {[%clk 0:00:19]}  Rh1 {[%clk 0:00:12]} 56. Ra7+ {[%clk 0:00:19]}  Kf8 {[%clk 0:00:12]} 57. Kf6 {[%clk 0:00:18]}  Ke8 {[%clk 0:00:10]} 58. Rh7 {[%clk 0:00:18]}  Rg1 {[%clk 0:00:09]} 59. g5 {[%clk 0:00:17]}  Ra1 {[%clk 0:00:08]} 60. Kxg6 {[%clk 0:00:18]}  Kf8 {[%clk 0:00:08]} 61. Rb7 {[%clk 0:00:17]}  Ra6+ {[%clk 0:00:08]} 62. Kh7 {[%clk 0:00:16]}  Ra5 {[%clk 0:00:05]} 63. Kh6 {[%clk 0:00:14]}  Ra6+ {[%clk 0:00:05]} 64. g6 {[%clk 0:00:14]}  Rc6 {[%clk 0:00:06]} 65. Rb8+ {[%clk 0:00:14]}  Ke7 {[%clk 0:00:06]} 66. h5 {[%clk 0:00:14]}  Rc7 {[%clk 0:00:06]} 67. g7 {[%clk 0:00:14]}  Rc6+ {[%clk 0:00:03]} 68. Kh7 {[%clk 0:00:14]}  Rc5 {[%clk 0:00:03]} 69. h6 {[%clk 0:00:14]} 1-0


[Site "https://www.chess.com"]

[Event "Titled Tuesday Blitz July 05 Late 2022"]
[White "Vovk, Orest"]
[Black "Arabidze, Meri"]
[WhiteFideId "14113490"]
[BlackFideId "13604040"]
[WhiteElo "2203"]
[BlackElo "2335"]
[Result "0-1"]
[Round "07"]
[TimeControl "180+1"]
[Date "2022.07.06"]
[WhiteClock "0:00:01"]
[BlackClock "0:00:05"]

1. h4 {[%clk 0:03:00]}  d5 {[%clk 0:02:57]} 2. h5 {[%clk 0:03:00]}  h6 {[%clk 0:02:53]} 3. e4 {[%clk 0:03:00]}  dxe4 {[%clk 0:02:51]} 4. Nc3 {[%clk 0:03:00]}  Nf6 {[%clk 0:02:51]} 5. Qe2 {[%clk 0:02:55]}  Nc6 {[%clk 0:02:45]} 6. Nxe4 {[%clk 0:02:55]}  e5 {[%clk 0:02:36]} 7. Nxf6+ {[%clk 0:02:51]}  Qxf6 {[%clk 0:02:37]} 8. Qf3 {[%clk 0:02:44]}  Be7 {[%clk 0:02:31]} 9. Qxf6 {[%clk 0:02:44]}  Bxf6 {[%clk 0:02:31]} 10. d3 {[%clk 0:02:37]}  Nd4 {[%clk 0:02:27]} 11. Kd1 {[%clk 0:02:36]}  Bg4+ {[%clk 0:02:23]} 12. Be2 {[%clk 0:02:36]}  Nxe2 {[%clk 0:02:20]} 13. Nxe2 {[%clk 0:02:37]}  O-O-O {[%clk 0:02:19]} 14. f3 {[%clk 0:02:36]}  Be6 {[%clk 0:02:18]} 15. Be3 {[%clk 0:02:33]}  a6 {[%clk 0:02:08]} 16. Ke1 {[%clk 0:02:22]}  e4 {[%clk 0:01:59]} 17. dxe4 {[%clk 0:02:07]}  Bxb2 {[%clk 0:01:58]} 18. Rb1 {[%clk 0:02:07]}  Ba3 {[%clk 0:01:51]} 19. Kf2 {[%clk 0:01:51]}  b5 {[%clk 0:01:47]} 20. Nd4 {[%clk 0:01:46]}  Bc4 {[%clk 0:01:41]} 21. Nb3 {[%clk 0:01:44]}  Bb4 {[%clk 0:01:30]} 22. Rhd1 {[%clk 0:01:33]}  Rd6 {[%clk 0:01:13]} 23. Rxd6 {[%clk 0:01:30]}  Bxd6 {[%clk 0:01:11]} 24. g4 {[%clk 0:01:26]}  Rd8 {[%clk 0:01:09]} 25. f4 {[%clk 0:01:17]}  f6 {[%clk 0:01:04]} 26. Kf3 {[%clk 0:01:13]}  Bb4 {[%clk 0:00:50]} 27. Nd4 {[%clk 0:01:07]}  Bc3 {[%clk 0:00:43]} 28. Nb3 {[%clk 0:00:53]}  a5 {[%clk 0:00:42]} 29. a3 {[%clk 0:00:51]}  a4 {[%clk 0:00:33]} 30. Nc5 {[%clk 0:00:48]}  c6 {[%clk 0:00:20]} 31. Na6 {[%clk 0:00:31]}  Kb7 {[%clk 0:00:18]} 32. Nc5+ {[%clk 0:00:28]}  Kc8 {[%clk 0:00:18]} 33. Na6 {[%clk 0:00:22]}  Ba2 {[%clk 0:00:18]} 34. Rg1 {[%clk 0:00:16]}  Bf7 {[%clk 0:00:18]} 35. Nb4 {[%clk 0:00:12]}  Bxb4 {[%clk 0:00:16]} 36. axb4 {[%clk 0:00:12]}  a3 {[%clk 0:00:17]} 37. Ra1 {[%clk 0:00:11]}  a2 {[%clk 0:00:17]} 38. Ke2 {[%clk 0:00:09]}  Bc4+ {[%clk 0:00:17]} 39. Kf3 {[%clk 0:00:06]}  Kb7 {[%clk 0:00:18]} 40. g5 {[%clk 0:00:03]}  fxg5 {[%clk 0:00:18]} 41. fxg5 {[%clk 0:00:04]}  Rf8+ {[%clk 0:00:18]} 42. Kg4 {[%clk 0:00:04]}  hxg5 {[%clk 0:00:18]} 43. Bxg5 {[%clk 0:00:05]}  Rf1 {[%clk 0:00:16]} 44. Bc1 {[%clk 0:00:02]}  Rg1+ {[%clk 0:00:16]} 45. Kf4 {[%clk 0:00:02]}  Rh1 {[%clk 0:00:14]} 46. Bb2 {[%clk 0:00:02]}  Rxh5 {[%clk 0:00:14]} 47. Bxg7 {[%clk 0:00:02]}  Rh4+ {[%clk 0:00:12]} 48. Kf5 {[%clk 0:00:02]}  Rh2 {[%clk 0:00:12]} 49. e5 {[%clk 0:00:02]}  Rxc2 {[%clk 0:00:12]} 50. e6 {[%clk 0:00:01]}  Rf2+ {[%clk 0:00:12]} 51. Ke5 {[%clk 0:00:02]}  Re2+ {[%clk 0:00:12]} 52. Kd4 {[%clk 0:00:02]}  Bxe6 {[%clk 0:00:11]} 53. Kc5 {[%clk 0:00:02]}  Bc4 {[%clk 0:00:11]} 54. Bd4 {[%clk 0:00:02]}  Rg2 {[%clk 0:00:10]} 55. Kd6 {[%clk 0:00:02]}  Rg6+ {[%clk 0:00:10]} 56. Kd7 {[%clk 0:00:02]}  Rg4 {[%clk 0:00:10]} 57. Bc5 {[%clk 0:00:02]}  Rg2 {[%clk 0:00:08]} 58. Kd6 {[%clk 0:00:02]}  Rd2+ {[%clk 0:00:08]} 59. Ke7 {[%clk 0:00:02]}  Re2+ {[%clk 0:00:08]} 60. Kd6 {[%clk 0:00:02]}  Rb2 {[%clk 0:00:09]} 61. Re1 {[%clk 0:00:02]}  Rd2+ {[%clk 0:00:07]} 62. Ke7 {[%clk 0:00:02]}  Bd3 {[%clk 0:00:06]} 63. Ke6 {[%clk 0:00:01]}  Bb1 {[%clk 0:00:05]} 0-1


[Site "https://www.chess.com"]

[Event "Titled Tuesday Blitz July 05 Late 2022"]
[White "Wieczorek, Oskar"]
[Black "Maghsoodloo, Parham"]
[WhiteFideId "1133950"]
[BlackFideId "12539929"]
[WhiteElo "2330"]
[BlackElo "2607"]
[Result "0-1"]
[Round "07"]
[TimeControl "180+1"]
[Date "2022.07.05"]
[WhiteClock "0:00:32"]
[BlackClock "0:01:11"]

1. e4 {[%clk 0:03:00]}  c5 {[%clk 0:03:00]} 2. Nf3 {[%clk 0:03:00]}  d6 {[%clk 0:03:00]} 3. d4 {[%clk 0:03:00]}  cxd4 {[%clk 0:03:01]} 4. Nxd4 {[%clk 0:03:01]}  Nf6 {[%clk 0:03:01]} 5. Nc3 {[%clk 0:03:02]}  a6 {[%clk 0:03:02]} 6. h4 {[%clk 0:03:02]}  h6 {[%clk 0:02:59]} 7. f3 {[%clk 0:02:51]}  e5 {[%clk 0:02:58]} 8. Nb3 {[%clk 0:02:50]}  Be6 {[%clk 0:02:55]} 9. Be3 {[%clk 0:02:51]}  Nbd7 {[%clk 0:02:53]} 10. Qd2 {[%clk 0:02:51]}  b5 {[%clk 0:02:53]} 11. O-O-O {[%clk 0:02:50]}  Rc8 {[%clk 0:02:47]} 12. Kb1 {[%clk 0:02:49]}  Nb6 {[%clk 0:02:44]} 13. g4 {[%clk 0:02:34]}  b4 {[%clk 0:02:38]} 14. Nd5 {[%clk 0:02:34]}  Nbxd5 {[%clk 0:02:11]} 15. exd5 {[%clk 0:02:34]}  Nxd5 {[%clk 0:02:12]} 16. Bxa6 {[%clk 0:02:31]}  Nxe3 {[%clk 0:02:10]} 17. Qxe3 {[%clk 0:02:16]}  Rb8 {[%clk 0:02:04]} 18. f4 {[%clk 0:02:04]}  Qb6 {[%clk 0:02:04]} 19. Qe2 {[%clk 0:01:59]}  Be7 {[%clk 0:01:40]} 20. f5 {[%clk 0:01:52]}  Bd7 {[%clk 0:01:40]} 21. Bc4 {[%clk 0:01:48]}  Bc6 {[%clk 0:01:40]} 22. Rhg1 {[%clk 0:01:39]}  Bxh4 {[%clk 0:01:27]} 23. Nd4 {[%clk 0:01:25]}  Bd7 {[%clk 0:01:20]} 24. Ne6 {[%clk 0:00:51]}  fxe6 {[%clk 0:01:12]} 25. fxe6 {[%clk 0:00:52]}  Bb5 {[%clk 0:01:13]} 26. Bxb5+ {[%clk 0:00:31]}  Qxb5 {[%clk 0:01:13]} 27. Qe4 {[%clk 0:00:32]}  O-O {[%clk 0:01:11]} 0-1


[Site "https://www.chess.com"]

[Event "Titled Tuesday Blitz July 05 Late 2022"]
[White "Xiong, Jeffery"]
[Black "Riehle, Marco"]
[WhiteFideId "2047640"]
[BlackFideId "12904392"]
[WhiteElo "2714"]
[BlackElo "2462"]
[Result "0-1"]
[Round "07"]
[TimeControl "180+1"]
[Date "2022.07.05"]
[WhiteClock "0:01:20"]
[BlackClock "0:00:30"]

1. e4 {[%clk 0:03:00]}  e5 {[%clk 0:02:59]} 2. Nf3 {[%clk 0:03:01]}  Nf6 {[%clk 0:03:00]} 3. Nc3 {[%clk 0:03:01]}  Nc6 {[%clk 0:03:00]} 4. d4 {[%clk 0:03:01]}  exd4 {[%clk 0:03:00]} 5. Nxd4 {[%clk 0:03:02]}  Nxe4 {[%clk 0:03:01]} 6. Nxe4 {[%clk 0:03:02]}  Qe7 {[%clk 0:03:00]} 7. Bd3 {[%clk 0:03:02]}  Nxd4 {[%clk 0:02:33]} 8. O-O {[%clk 0:03:02]}  d5 {[%clk 0:02:29]} 9. Bc4 {[%clk 0:03:02]}  dxc4 {[%clk 0:02:11]} 10. Qxd4 {[%clk 0:03:01]}  Be6 {[%clk 0:02:11]} 11. Re1 {[%clk 0:02:34]}  Qd7 {[%clk 0:02:06]} 12. Qc3 {[%clk 0:02:07]}  O-O-O {[%clk 0:02:02]} 13. Bg5 {[%clk 0:02:07]}  f6 {[%clk 0:01:59]} 14. Nxf6 {[%clk 0:02:06]}  gxf6 {[%clk 0:01:51]} 15. Bxf6 {[%clk 0:02:07]}  Rg8 {[%clk 0:01:38]} 16. Bxd8 {[%clk 0:02:07]}  Qd5 {[%clk 0:01:38]} 17. f3 {[%clk 0:01:39]}  Bc5+ {[%clk 0:01:37]} 18. Kh1 {[%clk 0:01:39]}  Rxd8 {[%clk 0:01:38]} 19. Qe5 {[%clk 0:01:40]}  Bf7 {[%clk 0:01:26]} 20. Qxd5 {[%clk 0:01:37]}  Rxd5 {[%clk 0:01:24]} 21. Rad1 {[%clk 0:01:38]}  Rxd1 {[%clk 0:01:13]} 22. Rxd1 {[%clk 0:01:39]}  c3 {[%clk 0:01:14]} 23. bxc3 {[%clk 0:01:34]}  Bxa2 {[%clk 0:01:09]} 24. g4 {[%clk 0:01:34]}  a5 {[%clk 0:00:58]} 25. Ra1 {[%clk 0:01:33]}  Bd5 {[%clk 0:00:58]} 26. Kg2 {[%clk 0:01:34]}  b6 {[%clk 0:00:55]} 27. Kg3 {[%clk 0:01:34]}  Kd7 {[%clk 0:00:50]} 28. f4 {[%clk 0:01:35]}  Bd6 {[%clk 0:00:48]} 29. h4 {[%clk 0:01:26]}  Be4 {[%clk 0:00:44]} 30. h5 {[%clk 0:01:24]}  Bxc2 {[%clk 0:00:41]} 31. Kf3 {[%clk 0:01:25]}  a4 {[%clk 0:00:37]} 32. g5 {[%clk 0:01:25]}  Ke6 {[%clk 0:00:36]} 33. Re1+ {[%clk 0:01:20]}  Kf7 {[%clk 0:00:30]} 0-1


[Site "https://www.chess.com"]